[Event "Titled Tuesday Blitz March 01 Early 2022"]
[White "Bilych, Olexiy"]
[Black "Politov, Pavel Y."]
[WhiteFideId "14156504"]
[BlackFideId "24110515"]
[WhiteElo "2195"]
[BlackElo "2090"]
[Result "1/2-1/2"]
[Round "01"]
[TimeControl "180+1"]
[Date "2022.03.01"]
[WhiteClock "0:00:10"]
[BlackClock "0:00:05"]

1. e4 {[%clk 0:02:58]}  c5 {[%clk 0:02:59]} 2. Nf3 {[%clk 0:02:58]}  d6 {[%clk 0:03:00]} 3. d4 {[%clk 0:02:59]}  cxd4 {[%clk 0:03:01]} 4. Nxd4 {[%clk 0:02:59]}  Nf6 {[%clk 0:03:02]} 5. Nc3 {[%clk 0:03:00]}  a6 {[%clk 0:03:01]} 6. Bg5 {[%clk 0:03:00]}  e6 {[%clk 0:03:00]} 7. f4 {[%clk 0:03:01]}  h6 {[%clk 0:03:01]} 8. Bh4 {[%clk 0:03:00]}  Qb6 {[%clk 0:02:56]} 9. a3 {[%clk 0:03:00]}  Nc6 {[%clk 0:02:56]} 10. Bf2 {[%clk 0:02:55]}  Qc7 {[%clk 0:02:56]} 11. Qf3 {[%clk 0:02:54]}  e5 {[%clk 0:02:55]} 12. Nxc6 {[%clk 0:02:53]}  bxc6 {[%clk 0:02:56]} 13. fxe5 {[%clk 0:02:53]}  Ng4 {[%clk 0:02:56]} 14. Bg3 {[%clk 0:02:50]}  Nxe5 {[%clk 0:02:56]} 15. Bxe5 {[%clk 0:02:49]}  dxe5 {[%clk 0:02:56]} 16. Bc4 {[%clk 0:02:50]}  Bc5 {[%clk 0:02:38]} 17. O-O-O {[%clk 0:02:46]}  O-O {[%clk 0:02:36]} 18. g4 {[%clk 0:02:47]}  Qe7 {[%clk 0:02:09]} 19. h4 {[%clk 0:02:45]}  Be6 {[%clk 0:02:06]} 20. Bb3 {[%clk 0:02:35]}  Bxb3 {[%clk 0:02:05]} 21. cxb3 {[%clk 0:02:36]}  Bd4 {[%clk 0:02:03]} 22. Kb1 {[%clk 0:02:34]}  Rab8 {[%clk 0:02:02]} 23. Ne2 {[%clk 0:02:33]}  Qe6 {[%clk 0:01:48]} 24. Nxd4 {[%clk 0:02:17]}  exd4 {[%clk 0:01:48]} 25. b4 {[%clk 0:02:18]}  a5 {[%clk 0:01:41]} 26. Rxd4 {[%clk 0:02:11]}  axb4 {[%clk 0:01:41]} 27. axb4 {[%clk 0:02:04]}  Rb5 {[%clk 0:01:34]} 28. Rc1 {[%clk 0:01:58]}  Rfb8 {[%clk 0:01:31]} 29. g5 {[%clk 0:01:48]}  hxg5 {[%clk 0:01:19]} 30. hxg5 {[%clk 0:01:49]}  Rxb4 {[%clk 0:01:19]} 31. Rxb4 {[%clk 0:01:42]}  Rxb4 {[%clk 0:01:20]} 32. Re1 {[%clk 0:01:26]}  Qe5 {[%clk 0:01:20]} 33. Qg2 {[%clk 0:01:27]}  Qc3 {[%clk 0:00:55]} 34. Rd1 {[%clk 0:01:23]}  Qe5 {[%clk 0:00:36]} 35. g6 {[%clk 0:00:56]}  fxg6 {[%clk 0:00:29]} 36. Rd8+ {[%clk 0:00:55]}  Kh7 {[%clk 0:00:28]} 37. Qh3+ {[%clk 0:00:45]}  Qh5 {[%clk 0:00:28]} 38. Qc3 {[%clk 0:00:45]}  Qh1+ {[%clk 0:00:15]} 39. Ka2 {[%clk 0:00:41]}  Ra4+ {[%clk 0:00:16]} 40. Kb3 {[%clk 0:00:41]}  Qxe4 {[%clk 0:00:12]} 41. Rd7 {[%clk 0:00:16]}  Qe6+ {[%clk 0:00:12]} 42. Kxa4 {[%clk 0:00:16]}  Qxd7 {[%clk 0:00:13]} 43. Ka5 {[%clk 0:00:17]}  g5 {[%clk 0:00:12]} 44. Qg3 {[%clk 0:00:16]}  g4 {[%clk 0:00:12]} 45. Kb6 {[%clk 0:00:15]}  g5 {[%clk 0:00:10]} 46. Qe5 {[%clk 0:00:15]}  Kg6 {[%clk 0:00:09]} 47. b4 {[%clk 0:00:14]}  Qd5 {[%clk 0:00:09]} 48. Qe8+ {[%clk 0:00:14]}  Kf5 {[%clk 0:00:08]} 49. Qf8+ {[%clk 0:00:11]}  Ke4 {[%clk 0:00:09]} 50. Qe7+ {[%clk 0:00:11]}  Kf3 {[%clk 0:00:08]} 51. Qf6+ {[%clk 0:00:10]}  Kg2 {[%clk 0:00:09]} 52. Qb2+ {[%clk 0:00:10]}  Kh3 {[%clk 0:00:08]} 53. Qh8+ {[%clk 0:00:10]}  Kg2 {[%clk 0:00:08]} 54. Qb2+ {[%clk 0:00:10]}  Kh1 {[%clk 0:00:08]} 55. Qh8+ {[%clk 0:00:10]}  Kg1 {[%clk 0:00:07]} 56. Qa1+ {[%clk 0:00:10]}  Kf2 {[%clk 0:00:08]} 57. Qb2+ {[%clk 0:00:10]}  Kg3 {[%clk 0:00:08]} 58. Qc3+ {[%clk 0:00:10]}  Qf3 {[%clk 0:00:08]} 59. Qxc6 {[%clk 0:00:10]}  Qxc6+ {[%clk 0:00:08]} 60. Kxc6 {[%clk 0:00:11]}  Kf2 {[%clk 0:00:07]} 61. b5 {[%clk 0:00:12]}  g3 {[%clk 0:00:07]} 62. b6 {[%clk 0:00:13]}  g2 {[%clk 0:00:07]} 63. b7 {[%clk 0:00:14]}  g1=Q {[%clk 0:00:08]} 64. b8=Q {[%clk 0:00:15]}  Qc1+ {[%clk 0:00:07]} 65. Kd5 {[%clk 0:00:15]}  g4 {[%clk 0:00:06]} 66. Qa7+ {[%clk 0:00:14]}  Kg2 {[%clk 0:00:06]} 67. Ke4 {[%clk 0:00:12]}  g3 {[%clk 0:00:06]} 68. Qa8 {[%clk 0:00:10]}  Qe1+ {[%clk 0:00:05]} 69. Kf4+ {[%clk 0:00:10]}  Kh2 {[%clk 0:00:05]} 70. Qh8+ {[%clk 0:00:10]}  Kg2 {[%clk 0:00:05]} 71. Qa8+ {[%clk 0:00:10]}  Kf1 {[%clk 0:00:05]} 72. Qh1+ {[%clk 0:00:09]}  Ke2 {[%clk 0:00:04]} 73. Qxe1+ {[%clk 0:00:09]}  Kxe1 {[%clk 0:00:05]} 74. Kxg3 {[%clk 0:00:10]} 1/2-1/2


[Site "https://www.chess.com"]

[Event "Titled Tuesday Blitz March 01 Early 2022"]
[White "Bogumil, Tatiana"]
[Black "Omelja, Artem"]
[WhiteFideId "4110579"]
[BlackFideId "14119846"]
[WhiteElo "1862"]
[BlackElo "2418"]
[Result "0-1"]
[Round "01"]
[TimeControl "180+1"]
[Date "2022.03.01"]
[WhiteClock "0:00:01"]
[BlackClock "0:00:37"]

1. Nf3 {[%clk 0:02:34]}  d5 {[%clk 0:02:58]} 2. c4 {[%clk 0:02:30]}  c6 {[%clk 0:02:57]} 3. b3 {[%clk 0:02:28]}  Nf6 {[%clk 0:02:55]} 4. Bb2 {[%clk 0:02:28]}  Bf5 {[%clk 0:02:53]} 5. g3 {[%clk 0:02:28]}  e6 {[%clk 0:02:52]} 6. Bg2 {[%clk 0:02:29]}  Be7 {[%clk 0:02:53]} 7. O-O {[%clk 0:02:29]}  O-O {[%clk 0:02:53]} 8. d3 {[%clk 0:02:29]}  Nbd7 {[%clk 0:02:53]} 9. Nbd2 {[%clk 0:02:29]}  h6 {[%clk 0:02:51]} 10. a3 {[%clk 0:02:26]}  Qc7 {[%clk 0:02:45]} 11. b4 {[%clk 0:02:25]}  a5 {[%clk 0:02:25]} 12. Qb3 {[%clk 0:02:20]}  Rfd8 {[%clk 0:02:14]} 13. Rfe1 {[%clk 0:02:11]}  Bh7 {[%clk 0:01:58]} 14. e4 {[%clk 0:01:49]}  dxe4 {[%clk 0:01:50]} 15. dxe4 {[%clk 0:01:41]}  Qb6 {[%clk 0:01:36]} 16. c5 {[%clk 0:01:21]}  Qc7 {[%clk 0:01:32]} 17. Rac1 {[%clk 0:01:05]}  axb4 {[%clk 0:01:21]} 18. axb4 {[%clk 0:01:02]}  b6 {[%clk 0:01:21]} 19. cxb6 {[%clk 0:00:43]}  Qxb6 {[%clk 0:01:22]} 20. Bd4 {[%clk 0:00:33]}  Qxb4 {[%clk 0:01:18]} 21. Qxb4 {[%clk 0:00:30]}  Bxb4 {[%clk 0:01:19]} 22. Rxc6 {[%clk 0:00:28]}  Ra2 {[%clk 0:01:13]} 23. Rd1 {[%clk 0:00:10]}  e5 {[%clk 0:00:52]} 24. Be3 {[%clk 0:00:05]}  Nf8 {[%clk 0:00:40]} 25. Kf1 {[%clk 0:00:01]}  Nxe4 {[%clk 0:00:37]} 0-1


[Site "https://www.chess.com"]

[Event "Titled Tuesday Blitz March 01 Early 2022"]
[White "Bortnyk, Olexandr"]
[Black "Karas, Marek"]
[WhiteFideId "14120828"]
[BlackFideId "14928558"]
[WhiteElo "2723"]
[BlackElo "2270"]
[Result "0-1"]
[Round "01"]
[TimeControl "180+1"]
[Date "2022.03.01"]
[WhiteClock "0:00:02"]
[BlackClock "0:00:11"]

1. d4 {[%clk 0:02:59]}  Nf6 {[%clk 0:02:59]} 2. Nc3 {[%clk 0:02:57]}  e6 {[%clk 0:02:57]} 3. e4 {[%clk 0:02:56]}  d5 {[%clk 0:02:58]} 4. Bg5 {[%clk 0:02:54]}  Be7 {[%clk 0:02:57]} 5. e5 {[%clk 0:02:51]}  Nfd7 {[%clk 0:02:57]} 6. Bxe7 {[%clk 0:02:48]}  Qxe7 {[%clk 0:02:58]} 7. f4 {[%clk 0:02:44]}  O-O {[%clk 0:02:58]} 8. Nf3 {[%clk 0:02:44]}  c5 {[%clk 0:02:58]} 9. Qd2 {[%clk 0:02:40]}  Nc6 {[%clk 0:02:58]} 10. Qf2 {[%clk 0:02:34]}  b6 {[%clk 0:02:54]} 11. Bd3 {[%clk 0:02:31]}  f6 {[%clk 0:02:47]} 12. Qh4 {[%clk 0:01:56]}  h6 {[%clk 0:02:41]} 13. O-O-O {[%clk 0:01:17]}  cxd4 {[%clk 0:02:24]} 14. Nb5 {[%clk 0:01:11]}  fxe5 {[%clk 0:02:21]} 15. Qxe7 {[%clk 0:01:10]}  Nxe7 {[%clk 0:02:21]} 16. fxe5 {[%clk 0:01:10]}  Nc5 {[%clk 0:02:12]} 17. Nfxd4 {[%clk 0:00:53]}  Bd7 {[%clk 0:02:08]} 18. Nd6 {[%clk 0:00:48]}  Rf2 {[%clk 0:01:52]} 19. Rhg1 {[%clk 0:00:40]}  Nxd3+ {[%clk 0:01:44]} 20. Rxd3 {[%clk 0:00:36]}  Ng6 {[%clk 0:01:44]} 21. Re3 {[%clk 0:00:21]}  Raf8 {[%clk 0:01:40]} 22. b3 {[%clk 0:00:18]}  Nf4 {[%clk 0:01:26]} 23. Rg3 {[%clk 0:00:09]}  Kh7 {[%clk 0:01:17]} 24. h4 {[%clk 0:00:04]}  Nh5 {[%clk 0:01:01]} 25. Rc3 {[%clk 0:00:04]}  R8f4 {[%clk 0:00:56]} 26. Nf3 {[%clk 0:00:03]}  Ng3 {[%clk 0:00:49]} 27. Ng5+ {[%clk 0:00:03]}  hxg5 {[%clk 0:00:49]} 28. Rxg3 {[%clk 0:00:04]}  gxh4 {[%clk 0:00:46]} 29. Rc3 {[%clk 0:00:04]}  Rf8 {[%clk 0:00:31]} 30. Rc7 {[%clk 0:00:05]}  Be8 {[%clk 0:00:32]} 31. Rh1 {[%clk 0:00:03]}  Rf1+ {[%clk 0:00:28]} 32. Rxf1 {[%clk 0:00:03]}  Rxf1+ {[%clk 0:00:29]} 33. Kd2 {[%clk 0:00:03]}  Bh5 {[%clk 0:00:28]} 34. Ke3 {[%clk 0:00:04]}  Re1+ {[%clk 0:00:22]} 35. Kf4 {[%clk 0:00:04]}  Re2 {[%clk 0:00:21]} 36. Kg5 {[%clk 0:00:05]}  Bg6 {[%clk 0:00:20]} 37. Kxh4 {[%clk 0:00:04]}  Rxg2 {[%clk 0:00:16]} 38. c4 {[%clk 0:00:03]}  Be4 {[%clk 0:00:15]} 39. cxd5 {[%clk 0:00:02]}  Bxd5 {[%clk 0:00:15]} 40. Ne8 {[%clk 0:00:03]}  Kg6 {[%clk 0:00:14]} 41. Rxg7+ {[%clk 0:00:03]}  Kf5 {[%clk 0:00:15]} 42. Rxa7 {[%clk 0:00:03]}  Kxe5 {[%clk 0:00:15]} 43. Rg7 {[%clk 0:00:02]}  Rxa2 {[%clk 0:00:15]} 44. Rg5+ {[%clk 0:00:02]}  Kd4 {[%clk 0:00:15]} 45. Rg4+ {[%clk 0:00:03]}  Kc5 {[%clk 0:00:14]} 46. b4+ {[%clk 0:00:04]}  Kc6 {[%clk 0:00:14]} 47. Nf6 {[%clk 0:00:04]}  Rb2 {[%clk 0:00:14]} 48. Kg5 {[%clk 0:00:03]}  Kb5 {[%clk 0:00:14]} 49. Rg1 {[%clk 0:00:02]}  Rxb4 {[%clk 0:00:15]} 50. Rd1 {[%clk 0:00:02]}  Bc4 {[%clk 0:00:15]} 51. Ne8 {[%clk 0:00:01]}  Bd5 {[%clk 0:00:13]} 52. Re1 {[%clk 0:00:01]}  Kc6 {[%clk 0:00:13]} 53. Kf6 {[%clk 0:00:01]}  Rf4+ {[%clk 0:00:13]} 54. Ke5 {[%clk 0:00:02]}  Rc4 {[%clk 0:00:12]} 55. Nf6 {[%clk 0:00:02]}  b5 {[%clk 0:00:13]} 56. Ra1 {[%clk 0:00:02]}  Kc5 {[%clk 0:00:13]} 57. Ra7 {[%clk 0:00:02]}  Kb4 {[%clk 0:00:12]} 58. Ra1 {[%clk 0:00:02]}  Kc3 {[%clk 0:00:09]} 59. Rc1+ {[%clk 0:00:02]}  Kd2 {[%clk 0:00:09]} 60. Rb1 {[%clk 0:00:01]}  b4 {[%clk 0:00:10]} 61. Nxd5 {[%clk 0:00:02]}  exd5 {[%clk 0:00:10]} 62. Kxd5 {[%clk 0:00:02]}  Rh4 {[%clk 0:00:09]} 63. Kc5 {[%clk 0:00:01]}  Kc3 {[%clk 0:00:10]} 64. Rc1+ {[%clk 0:00:02]}  Kb3 {[%clk 0:00:10]} 65. Rb1+ {[%clk 0:00:02]}  Ka3 {[%clk 0:00:10]} 66. Ra1+ {[%clk 0:00:02]}  Kb2 {[%clk 0:00:11]} 67. Ra4 {[%clk 0:00:02]}  Kc3 {[%clk 0:00:10]} 68. Kb5 {[%clk 0:00:02]}  Rh5+ {[%clk 0:00:10]} 69. Kc6 {[%clk 0:00:02]}  b3 {[%clk 0:00:11]} 70. Ra3 {[%clk 0:00:03]}  Kb4 {[%clk 0:00:10]} 71. Ra8 {[%clk 0:00:02]}  b2 {[%clk 0:00:10]} 72. Rb8+ {[%clk 0:00:02]}  Kc3 {[%clk 0:00:11]} 0-1


[Site "https://www.chess.com"]

[Event "Titled Tuesday Blitz March 01 Early 2022"]
[White "Brunner, Nicolas"]
[Black "Babazada, Khazar"]
[WhiteFideId "620246"]
[BlackFideId "13413554"]
[WhiteElo "2372"]
[BlackElo "2418"]
[Result "1/2-1/2"]
[Round "01"]
[TimeControl "180+1"]
[Date "2022.03.01"]
[WhiteClock "0:00:12"]
[BlackClock "0:00:09"]

1. d4 {[%clk 0:03:00]}  Nf6 {[%clk 0:02:58]} 2. c4 {[%clk 0:03:00]}  e6 {[%clk 0:02:56]} 3. g3 {[%clk 0:03:00]}  Bb4+ {[%clk 0:02:54]} 4. Bd2 {[%clk 0:02:59]}  a5 {[%clk 0:02:55]} 5. Bg2 {[%clk 0:02:57]}  O-O {[%clk 0:02:54]} 6. e4 {[%clk 0:02:52]}  d6 {[%clk 0:02:51]} 7. Ne2 {[%clk 0:02:51]}  e5 {[%clk 0:02:51]} 8. O-O {[%clk 0:02:49]}  Nc6 {[%clk 0:02:49]} 9. d5 {[%clk 0:02:48]}  Ne7 {[%clk 0:02:40]} 10. f4 {[%clk 0:02:40]}  Bc5+ {[%clk 0:02:39]} 11. Kh1 {[%clk 0:02:39]}  exf4 {[%clk 0:02:33]} 12. gxf4 {[%clk 0:02:38]}  Ng4 {[%clk 0:02:26]} 13. Qe1 {[%clk 0:02:38]}  Ng6 {[%clk 0:02:22]} 14. Qg3 {[%clk 0:02:27]}  Qh4 {[%clk 0:02:01]} 15. h3 {[%clk 0:02:07]}  Qxg3 {[%clk 0:02:00]} 16. Nxg3 {[%clk 0:02:07]}  Ne3 {[%clk 0:02:01]} 17. Bxe3 {[%clk 0:01:59]}  Bxe3 {[%clk 0:02:02]} 18. Nh5 {[%clk 0:01:44]}  Nh4 {[%clk 0:01:36]} 19. Nc3 {[%clk 0:01:39]}  g6 {[%clk 0:01:30]} 20. Nf6+ {[%clk 0:01:35]}  Kg7 {[%clk 0:01:30]} 21. Ng4 {[%clk 0:01:35]}  Bxg4 {[%clk 0:01:20]} 22. hxg4 {[%clk 0:01:35]}  h5 {[%clk 0:01:20]} 23. g5 {[%clk 0:01:23]}  Nxg2 {[%clk 0:01:18]} 24. Kxg2 {[%clk 0:01:23]}  Rfe8 {[%clk 0:01:14]} 25. Rae1 {[%clk 0:00:55]}  Bd2 {[%clk 0:01:10]} 26. Re2 {[%clk 0:00:55]}  Bxc3 {[%clk 0:01:07]} 27. bxc3 {[%clk 0:00:56]}  a4 {[%clk 0:01:08]} 28. Kf3 {[%clk 0:00:52]}  Ra5 {[%clk 0:01:07]} 29. Ke3 {[%clk 0:00:52]}  Rc5 {[%clk 0:01:04]} 30. Kd4 {[%clk 0:00:51]}  Rb8 {[%clk 0:00:55]} 31. e5 {[%clk 0:00:48]}  b5 {[%clk 0:00:53]} 32. cxb5 {[%clk 0:00:48]}  Rbxb5 {[%clk 0:00:51]} 33. c4 {[%clk 0:00:47]}  Rb4 {[%clk 0:00:51]} 34. Rc1 {[%clk 0:00:42]}  a3 {[%clk 0:00:40]} 35. exd6 {[%clk 0:00:35]}  cxd6 {[%clk 0:00:41]} 36. Re7 {[%clk 0:00:34]}  Rb2 {[%clk 0:00:38]} 37. Rd7 {[%clk 0:00:32]}  Rd2+ {[%clk 0:00:37]} 38. Kc3 {[%clk 0:00:27]}  Rdxd5 {[%clk 0:00:37]} 39. Kb4 {[%clk 0:00:20]}  Rd2 {[%clk 0:00:26]} 40. Rxd6 {[%clk 0:00:18]}  Rxc4+ {[%clk 0:00:26]} 41. Rxc4 {[%clk 0:00:18]}  Rxd6 {[%clk 0:00:27]} 42. Kxa3 {[%clk 0:00:19]}  h4 {[%clk 0:00:23]} 43. Kb4 {[%clk 0:00:17]}  h3 {[%clk 0:00:23]} 44. Rc3 {[%clk 0:00:15]}  h2 {[%clk 0:00:21]} 45. Rh3 {[%clk 0:00:14]}  Rd4+ {[%clk 0:00:16]} 46. Kb5 {[%clk 0:00:13]}  Rxf4 {[%clk 0:00:16]} 47. Rxh2 {[%clk 0:00:12]}  Rf5+ {[%clk 0:00:17]} 48. Kb6 {[%clk 0:00:13]}  Rxg5 {[%clk 0:00:15]} 49. a4 {[%clk 0:00:13]}  f5 {[%clk 0:00:14]} 50. a5 {[%clk 0:00:13]}  Rg3 {[%clk 0:00:14]} 51. Ra2 {[%clk 0:00:11]}  Rb3+ {[%clk 0:00:14]} 52. Kc7 {[%clk 0:00:12]}  f4 {[%clk 0:00:14]} 53. a6 {[%clk 0:00:12]}  Rc3+ {[%clk 0:00:14]} 54. Kb7 {[%clk 0:00:12]}  Rb3+ {[%clk 0:00:14]} 55. Kc7 {[%clk 0:00:12]}  Rc3+ {[%clk 0:00:14]} 56. Kb7 {[%clk 0:00:12]}  Rb3+ {[%clk 0:00:09]} 57. Kc7 {[%clk 0:00:12]} 1/2-1/2


[Site "https://www.chess.com"]

[Event "Titled Tuesday Blitz March 01 Early 2022"]
[White "Carlsson, Ludvig"]
[Black "Samaganova, Aleksandra"]
[WhiteFideId "1727010"]
[BlackFideId "13800221"]
[WhiteElo "2178"]
[BlackElo "1859"]
[Result "1-0"]
[Round "01"]
[TimeControl "180+1"]
[Date "2022.03.01"]
[WhiteClock "0:00:11"]
[BlackClock "0:00:09"]

1. e4 {[%clk 0:03:00]}  c5 {[%clk 0:02:59]} 2. Nf3 {[%clk 0:03:00]}  e6 {[%clk 0:02:59]} 3. d4 {[%clk 0:03:00]}  cxd4 {[%clk 0:02:58]} 4. Nxd4 {[%clk 0:03:00]}  a6 {[%clk 0:02:56]} 5. Bd3 {[%clk 0:02:59]}  Qc7 {[%clk 0:02:55]} 6. O-O {[%clk 0:02:58]}  Nf6 {[%clk 0:02:54]} 7. c4 {[%clk 0:02:52]}  Nc6 {[%clk 0:02:51]} 8. Nxc6 {[%clk 0:02:49]}  bxc6 {[%clk 0:02:51]} 9. Nc3 {[%clk 0:02:47]}  Be7 {[%clk 0:02:49]} 10. Be3 {[%clk 0:02:36]}  O-O {[%clk 0:02:48]} 11. Kh1 {[%clk 0:02:34]}  d5 {[%clk 0:02:41]} 12. cxd5 {[%clk 0:02:31]}  cxd5 {[%clk 0:02:40]} 13. exd5 {[%clk 0:02:28]}  Nxd5 {[%clk 0:02:39]} 14. Nxd5 {[%clk 0:02:14]}  exd5 {[%clk 0:02:38]} 15. Qh5 {[%clk 0:02:02]}  g6 {[%clk 0:02:27]} 16. Qxd5 {[%clk 0:02:01]}  Bb7 {[%clk 0:02:23]} 17. Qc4 {[%clk 0:02:01]}  Qe5 {[%clk 0:02:10]} 18. Rad1 {[%clk 0:01:43]}  Rac8 {[%clk 0:01:55]} 19. Qd4 {[%clk 0:01:38]}  Qxd4 {[%clk 0:01:41]} 20. Bxd4 {[%clk 0:01:39]}  Rfd8 {[%clk 0:01:41]} 21. Bc3 {[%clk 0:01:38]}  h6 {[%clk 0:01:34]} 22. Kg1 {[%clk 0:01:36]}  Rd7 {[%clk 0:01:29]} 23. Bc2 {[%clk 0:01:31]}  Rcd8 {[%clk 0:01:27]} 24. Rxd7 {[%clk 0:01:30]}  Rxd7 {[%clk 0:01:27]} 25. Re1 {[%clk 0:01:24]}  Bc6 {[%clk 0:01:14]} 26. h3 {[%clk 0:01:16]}  Rb7 {[%clk 0:01:07]} 27. Rd1 {[%clk 0:01:09]}  Kf8 {[%clk 0:00:51]} 28. Bd3 {[%clk 0:01:05]}  Bb5 {[%clk 0:00:46]} 29. Be4 {[%clk 0:01:01]}  Rc7 {[%clk 0:00:41]} 30. g3 {[%clk 0:00:53]}  Bc6 {[%clk 0:00:25]} 31. Bxc6 {[%clk 0:00:51]}  Rxc6 {[%clk 0:00:25]} 32. h4 {[%clk 0:00:51]}  h5 {[%clk 0:00:24]} 33. Rd5 {[%clk 0:00:46]}  Ke8 {[%clk 0:00:22]} 34. Kg2 {[%clk 0:00:42]}  Bd6 {[%clk 0:00:15]} 35. f3 {[%clk 0:00:41]}  Ke7 {[%clk 0:00:15]} 36. g4 {[%clk 0:00:39]}  hxg4 {[%clk 0:00:15]} 37. fxg4 {[%clk 0:00:40]}  Ke6 {[%clk 0:00:15]} 38. Rd3 {[%clk 0:00:37]}  Rc4 {[%clk 0:00:14]} 39. Re3+ {[%clk 0:00:34]}  Kd7 {[%clk 0:00:14]} 40. Kh3 {[%clk 0:00:31]}  Rf4 {[%clk 0:00:06]} 41. Rd3 {[%clk 0:00:30]}  Ke6 {[%clk 0:00:06]} 42. Be1 {[%clk 0:00:28]}  Rf1 {[%clk 0:00:05]} 43. Bg3 {[%clk 0:00:25]}  Be7 {[%clk 0:00:03]} 44. Rd2 {[%clk 0:00:19]}  Rb1 {[%clk 0:00:02]} 45. b3 {[%clk 0:00:18]}  Ra1 {[%clk 0:00:02]} 46. Kg2 {[%clk 0:00:19]}  Rb1 {[%clk 0:00:03]} 47. Kf3 {[%clk 0:00:19]}  Rc1 {[%clk 0:00:03]} 48. Re2+ {[%clk 0:00:19]}  Kd7 {[%clk 0:00:03]} 49. Rd2+ {[%clk 0:00:19]}  Ke6 {[%clk 0:00:03]} 50. h5 {[%clk 0:00:19]}  Rc3+ {[%clk 0:00:03]} 51. Kg2 {[%clk 0:00:18]}  gxh5 {[%clk 0:00:04]} 52. Re2+ {[%clk 0:00:17]}  Kd7 {[%clk 0:00:05]} 53. gxh5 {[%clk 0:00:17]}  Bg5 {[%clk 0:00:04]} 54. Rf2 {[%clk 0:00:09]}  Ke6 {[%clk 0:00:04]} 55. Kh3 {[%clk 0:00:09]}  Rc5 {[%clk 0:00:03]} 56. Kg4 {[%clk 0:00:10]}  Bh6 {[%clk 0:00:04]} 57. Bh4 {[%clk 0:00:10]}  Kd7 {[%clk 0:00:03]} 58. Rxf7+ {[%clk 0:00:09]}  Ke6 {[%clk 0:00:03]} 59. Rf6+ {[%clk 0:00:10]}  Kd7 {[%clk 0:00:03]} 60. Rxh6 {[%clk 0:00:11]}  Rc2 {[%clk 0:00:03]} 61. Rxa6 {[%clk 0:00:09]}  Rc1 {[%clk 0:00:02]} 62. Bg3 {[%clk 0:00:09]}  Rg1 {[%clk 0:00:02]} 63. h6 {[%clk 0:00:09]}  Rh1 {[%clk 0:00:03]} 64. h7 {[%clk 0:00:10]}  Rxh7 {[%clk 0:00:02]} 65. Ra7+ {[%clk 0:00:10]}  Kc6 {[%clk 0:00:03]} 66. Rxh7 {[%clk 0:00:10]}  Kb5 {[%clk 0:00:04]} 67. Rc7 {[%clk 0:00:10]}  Kb4 {[%clk 0:00:05]} 68. Rc4+ {[%clk 0:00:10]}  Ka3 {[%clk 0:00:05]} 69. b4 {[%clk 0:00:10]}  Kxa2 {[%clk 0:00:05]} 70. b5 {[%clk 0:00:11]}  Ka3 {[%clk 0:00:06]} 71. b6 {[%clk 0:00:11]}  Ka2 {[%clk 0:00:07]} 72. b7 {[%clk 0:00:11]}  Ka3 {[%clk 0:00:08]} 73. b8=Q {[%clk 0:00:11]}  Ka2 {[%clk 0:00:09]} 74. Ra4# {[%clk 0:00:11]} 1-0


[Site "https://www.chess.com"]

[Event "Titled Tuesday Blitz March 01 Early 2022"]
[White "Chernomordik, Pavel"]
[Black "Svane, Frederik"]
[WhiteFideId "2804530"]
[BlackFideId "12923044"]
[WhiteElo "2249"]
[BlackElo "2459"]
[Result "0-1"]
[Round "01"]
[TimeControl "180+1"]
[Date "2022.03.01"]
[WhiteClock "0:00:03"]
[BlackClock "0:00:34"]

1. e4 {[%clk 0:02:59]}  c5 {[%clk 0:02:57]} 2. Nc3 {[%clk 0:02:58]}  d6 {[%clk 0:02:53]} 3. f4 {[%clk 0:02:57]}  Nc6 {[%clk 0:02:52]} 4. Nf3 {[%clk 0:02:57]}  g6 {[%clk 0:02:48]} 5. Bb5 {[%clk 0:02:56]}  Bd7 {[%clk 0:02:47]} 6. O-O {[%clk 0:02:55]}  a6 {[%clk 0:02:45]} 7. Bxc6 {[%clk 0:02:55]}  Bxc6 {[%clk 0:02:46]} 8. d4 {[%clk 0:02:52]}  cxd4 {[%clk 0:02:47]} 9. Qxd4 {[%clk 0:02:51]}  Nf6 {[%clk 0:02:46]} 10. Be3 {[%clk 0:02:38]}  Bg7 {[%clk 0:02:45]} 11. Rad1 {[%clk 0:02:32]}  O-O {[%clk 0:02:44]} 12. Qd3 {[%clk 0:02:32]}  Qc7 {[%clk 0:02:39]} 13. h3 {[%clk 0:02:16]}  b5 {[%clk 0:02:39]} 14. a3 {[%clk 0:02:12]}  Qb7 {[%clk 0:02:23]} 15. Nd2 {[%clk 0:02:04]}  a5 {[%clk 0:02:17]} 16. b4 {[%clk 0:01:59]}  axb4 {[%clk 0:02:17]} 17. axb4 {[%clk 0:01:58]}  Ra3 {[%clk 0:02:16]} 18. Bd4 {[%clk 0:01:50]}  Rc8 {[%clk 0:02:07]} 19. Qe2 {[%clk 0:01:37]}  e5 {[%clk 0:01:45]} 20. fxe5 {[%clk 0:01:34]}  Nh5 {[%clk 0:01:45]} 21. Nf3 {[%clk 0:00:49]}  Ng3 {[%clk 0:01:41]} 22. Qf2 {[%clk 0:00:47]}  Nxf1 {[%clk 0:01:39]} 23. Rxf1 {[%clk 0:00:47]}  dxe5 {[%clk 0:01:36]} 24. Nxe5 {[%clk 0:00:45]}  Rxc3 {[%clk 0:00:43]} 25. Bxc3 {[%clk 0:00:39]}  Bxe4 {[%clk 0:00:44]} 26. Qd4 {[%clk 0:00:18]}  Bxg2 {[%clk 0:00:35]} 27. Rxf7 {[%clk 0:00:16]}  Qxf7 {[%clk 0:00:32]} 28. Nxf7 {[%clk 0:00:11]}  Bxd4+ {[%clk 0:00:32]} 29. Bxd4 {[%clk 0:00:10]}  Kxf7 {[%clk 0:00:32]} 30. Kxg2 {[%clk 0:00:09]}  Rxc2+ {[%clk 0:00:33]} 31. Kg3 {[%clk 0:00:09]}  Rc4 {[%clk 0:00:34]} 32. Be5 {[%clk 0:00:03]}  Rxb4 {[%clk 0:00:34]} 0-1


[Site "https://www.chess.com"]